fUST/lending_fUST_20250616
["ID","MTS","AMOUNT","RATE_DAILY","PERIOD"]
[366103669,1750063846956,-460.0,0.00022465,4]
[366103670,1750063846966,-460.0,0.00022465,4]
[366103671,1750063846976,-460.0,0.00022465,4]
[366103672,1750063846986,-334.45776443,0.00022465,4]
[366103673,1750063846997,-460.0,0.00022465,4]
[366103674,1750063847007,-460.0,0.00022465,4]
[366103675,1750063847018,-460.0,0.00022465,4]
[366103676,1750063847027,-400.0,0.00022465,4]
[366103677,1750063847037,-460.0,0.00022465,4]
[366103678,1750063847047,-460.0,0.00022465,4]
[366103679,1750063847056,-460.0,0.00022465,4]
[366103680,1750063847066,-460.0,0.00022465,4]
[366103681,1750063847076,-376.07208946,0.00022465,4]
[366103682,1750063847086,-460.0,0.00022465,4]
[366103683,1750063847096,-460.0,0.00022465,4]
[366103684,1750063847105,-460.0,0.00022465,4]
[366103685,1750063847115,-617.38,0.00022465,4]
[366103686,1750063847124,-828.86,0.00022465,4]
[366103687,1750063847134,-460.0,0.00022465,4]
[366103688,1750063847144,-460.0,0.00022465,4]
[366103689,1750063847153,-377.34608563,0.00022465,4]
[366103690,1750063847163,-579.1,0.00022465,4]
[366103691,1750063847172,-460.0,0.00022465,4]
[366103692,1750063847182,-460.0,0.00022465,4]
[366103693,1750063847192,-852.0,0.00022484,7]
[366103694,1750063847203,-159.613466,0.00022505,2]
[366103695,1750063847213,-500.0,0.00022523,2]
[366103696,1750063847223,-1000.0,0.00022535,2]
[366103697,1750063847233,-701.0,0.00022535,2]
[366103698,1750063847243,-3997.22198943,0.00022558,2]
[366103699,1750063847253,-500.0,0.00022568,2]
[366103700,1750063847263,-852.0,0.00022597,7]
[366103701,1750063847273,-500.0,0.00022632,2]
[366103702,1750063847283,-25000.0,0.000227,2]
[366103703,1750063847293,-852.0,0.00022709,7]
[366103704,1750063847385,-845.4146947,0.00022736,3]
[366103705,1750063847396,-1211.255641,0.00022736,3]
[366103706,1750063847407,-252.47696192,0.00022738,4]
[366103707,1750063847417,-754.41072803,0.00022738,2]
[366103708,1750063847426,-471.12,0.00022739,4]
[366103709,1750063847436,-460.0,0.00022739,2]
[366103710,1750063847445,-460.0,0.00022739,4]
[366103711,1750063847455,-460.0,0.00022739,2]
[366103712,1750063847465,-444.36779415,0.00022739,4]
[366103713,1750063847475,-460.0,0.00022739,4]
[366103715,1750063847485,-460.0,0.00022739,4]
[366103716,1750063847494,-460.0,0.00022739,4]
[366103718,1750063847504,-772.17,0.00022739,4]
[366103720,1750063847513,-460.0,0.00022739,4]
[366103721,1750063847523,-460.0,0.00022739,4]
[366103723,1750063847532,-460.0,0.00022739,4]
[366103725,1750063847542,-474.4,0.00022739,4]
[366103727,1750063847551,-460.0,0.00022739,4]
[366103728,1750063847561,-460.0,0.00022739,4]
[366103729,1750063847572,-460.0,0.00022739,4]
[366103730,1750063847582,-150.6578247,0.00022739,4]
[366103731,1750063847594,-460.0,0.00022739,4]
[366103732,1750063847603,-719.87,0.00022739,4]
[366103733,1750063847613,-460.0,0.00022739,4]
[366103734,1750063847623,-460.0,0.00022739,4]
[366103735,1750063847633,-460.0,0.00022739,4]
[366103736,1750063847643,-460.0,0.00022739,4]
[366103737,1750063847653,-460.0,0.00022739,4]
[366103738,1750063847663,-460.0,0.00022739,4]
[366103739,1750063847672,-160.06894057,0.00022739,4]
[366103740,1750063847682,-460.0,0.00022739,4]
[366103741,1750063847692,-460.0,0.00022739,4]
[366103742,1750063847701,-460.0,0.00022739,4]
[366103743,1750063847710,-460.0,0.00022739,4]
[366103744,1750063847720,-460.0,0.00022739,4]
[366103745,1750063847730,-460.0,0.00022739,4]
[366103746,1750063847739,-460.0,0.00022739,4]
[366103747,1750063847749,-269.80600474,0.00022739,4]
[366103748,1750063847758,-460.0,0.00022739,4]
[366103749,1750063847768,-460.0,0.00022739,4]
[366103750,1750063847778,-460.0,0.00022739,4]
[366103751,1750063847788,-460.0,0.00022739,4]
[366103752,1750063847798,-460.0,0.00022739,4]
[366103753,1750063847813,-460.0,0.00022739,4]
[366103754,1750063847823,-460.0,0.00022739,4]
[366103755,1750063847832,-460.0,0.00022739,4]
[366103756,1750063847842,-483.99685459,0.00022739,4]
[366103757,1750063847852,-394.68444349,0.00022739,4]
[366103758,1750063847862,-460.0,0.00022739,4]
[366103759,1750063847871,-460.0,0.00022739,4]
[366103760,1750063847883,-460.0,0.00022739,4]
[366103761,1750063847894,-460.0,0.00022739,4]
[366103762,1750063847903,-460.0,0.00022739,4]
[366103764,1750063847912,-460.0,0.00022739,4]
[366103765,1750063847922,-460.0,0.00022739,4]
[366103766,1750063847932,-469.27239173,0.00022739,4]
[366103768,1750063847941,-460.0,0.00022739,4]
[366103770,1750063847951,-599.63108781,0.00022739,4]
[366103771,1750063847960,-460.0,0.00022739,4]
[366103773,1750063847971,-460.0,0.00022739,4]
[366103774,1750063847980,-460.0,0.00022739,4]
[366103776,1750063847989,-460.0,0.00022739,4]
[366103778,1750063847999,-460.0,0.00022739,4]
[366103780,1750063848011,-617.38,0.00022739,4]
[366103782,1750063848021,-828.86,0.00022739,4]
[366103784,1750063848031,-460.0,0.00022739,4]
[366103786,1750063848040,-460.0,0.00022739,4]
[366103788,1750063848051,-579.1,0.00022739,4]
[366103790,1750063848061,-306.73726303,0.00022739,4]
[366103792,1750063848071,-486.26864314,0.00022739,4]
[366103794,1750063848082,-289.0,0.0002276,2]
[366103796,1750063848093,-852.0,0.00022821,7]
[366103798,1750063848102,-587.0,0.00022879,2]
[366103800,1750063848113,-800.0,0.00022922,2]
[366103802,1750063848123,-852.0,0.00022934,7]
[366103804,1750063848133,-213.36025772,0.00022934,7]
[366103806,1750063848143,-160.0,0.0002294,7]
[366103808,1750063848154,-635.84310012,0.00022973,2]
[366103810,1750063848164,-510.45944601,0.00022973,2]
[366103812,1750063848174,-500.0,0.00022973,2]
[366103814,1750063848184,-500.0,0.00022973,2]
[366103816,1750063848194,-507.46660414,0.00022973,2]
[366103818,1750063848204,-212.48080632,0.00022973,2]
[366103820,1750063848214,-668.81574628,0.00022991,2]
[366103822,1750063848226,-1000.0,0.00023,14]
[366103825,1750063848236,-89974.32391901,0.00023,14]
[366103836,1750063848562,-160.0,0.00021563,2]
[366103837,1750063848573,-303.43,0.00021917,4]
[366103838,1750063848704,-476.94570985,0.000203,3]
[366103839,1750063848713,-476.94570966,0.000203,3]
[366103840,1750063848723,-476.94570966,0.000203,3]
[366103841,1750063848733,-476.94570966,0.000203,3]
[366103842,1750063848743,-476.94570966,0.000203,3]
[366103843,1750063848753,-476.94570966,0.000203,3]
[366103844,1750063848763,-153.22629355,0.0002052,2]
[366103845,1750063848773,-98.5620758,0.00021917,4]
[366103846,1750063848783,-489.64037745,0.00021917,4]
[366103847,1750063848793,-460.0,0.00021917,4]
[366103848,1750063848805,-258.13825873,0.00021917,4]
[366103849,1750063848816,-460.0,0.00021917,4]
[366103850,1750063848826,-460.0,0.00022191,4]
[366103851,1750063848836,-460.0,0.00022191,4]
[366103852,1750063848847,-460.0,0.00022465,4]
[366103853,1750063848856,-460.0,0.00022465,4]
[366103854,1750063848866,-460.0,0.00022739,4]
[366103855,1750063848877,-460.0,0.00022739,4]
[366103856,1750063848887,-14097.13109562,0.00023,14]
[366103857,1750063849095,-476.94570966,0.00020348,3]
[366103858,1750063849105,-476.94570966,0.0002059,3]
[366103859,1750063849115,-476.94570966,0.00020831,4]
[366103860,1750063849125,-476.94570966,0.00021072,4]
[366103861,1750063849134,-476.94570966,0.00021314,5]
[366103862,1750063849144,-476.94570966,0.00021555,5]
[366103863,1750063849249,-476.94570966,0.00021797,6]
[366103864,1750063849262,-460.0,0.00021917,4]
[366103865,1750063849272,-460.0,0.00021917,4]
[366103866,1750063849282,-460.0,0.00021917,4]
[366103867,1750063849291,-500.0,0.00021917,4]
[366103868,1750063849301,-500.0,0.00021917,4]
[366103869,1750063849311,-460.0,0.00021917,4]
[366103870,1750063849320,-476.94570966,0.00022038,6]
[366103871,1750063849329,-440.0,0.00022191,4]
[366103872,1750063849339,-278.38,0.00022191,4]
[366103873,1750063849349,-460.0,0.00022191,4]
[366103874,1750063849358,-476.94570966,0.00022279,6]
[366103875,1750063849368,-868.46,0.00022455,3]
[366103876,1750063849378,-476.94570966,0.00022521,7]
[366103877,1750063849387,-476.94570966,0.00022762,7]
[366103878,1750063849399,-632.67719374,0.00023,14]
[366103879,1750063849420,-460.0,0.00021917,4]
[366103880,1750063849431,-460.0,0.00022465,4]
[366103881,1750063849441,-4208.13102616,0.00023,14]
[366103882,1750063849454,-11015.31477,0.00023,14]
[366103961,1750063892953,207.95,0.0002328,120]
[366103962,1750063918847,446.8103255,0.00017651,2]
[366103964,1750063963526,-213.69524621,0.00018097,2]
[366103965,1750063963549,-20.45029765,0.00018097,2]
[366103967,1750064031067,150.0,0.00025057,120]
[366103968,1750064044936,1279.22,0.00018,2]
[366103969,1750064071078,200.0,0.00023777,120]
[366103970,1750064099941,-326.89562294,0.00018097,2]
[366103971,1750064107871,1274.10440524,0.00017195,2]
[366103972,1750064107906,68264.83874046,0.00017195,2]
[366103973,1750064117327,2000.0,0.00017193,120]
[366103974,1750064160182,159.613466,0.00013699,2]
[366103976,1750064191092,200.0,0.00024336,120]
[366103977,1750064220573,268.0861953,0.00017648,2]
[366103978,1750064221247,-268.0861953,0.00018097,2]
[366103979,1750064311384,200.0,0.00024155,120]
[366103980,1750064330667,400.0,0.00024657,120]
[366103981,1750064342017,-485.73287967,0.00018,2]
[366103984,1750064371101,200.0,0.00024573,120]
[366103985,1750064380921,-386.03405117,0.00018,2]
[366103986,1750064402459,300.0,0.00017999,2]
[366103987,1750064402563,300.0,0.00017999,2]
[366103988,1750064422813,1200.0,0.00017999,2]
[366103989,1750064440607,-273.27838388,0.00018,2]
[366103990,1750064441727,-226.72161612,0.00018,2]
[366103991,1750064454078,-300.0,0.00018,2]
[366103992,1750064456209,300.0,0.00017999,2]
[366103993,1750064491917,200.0,0.00024402,120]
[366103994,1750064494261,-300.0,0.00018,2]
[366103995,1750064500060,-163.5887944,0.00018,2]
[366103996,1750064521732,160.85171718,0.0001746,2]
[366103999,1750064532343,4300.0,0.00024658,120]
[366104000,1750064547162,163.5887944,0.00017086,2]
[366104011,1750064551747,200.0,0.00024359,120]
[366104013,1750064553444,-361.33876577,0.00018,2]
[366104014,1750064575556,158.170545,0.00017222,2]
[366104015,1750064575644,158.170545,0.00017222,120]
[366104016,1750064579685,-300.0,0.00018,2]
[366104017,1750064580896,24900.0,0.00017086,2]
[366104019,1750064589163,-338.46432483,0.00018,2]
[366104020,1750064612079,200.0,0.00023911,120]
[366104022,1750064630090,-1200.0,0.00018,2]
[366104023,1750064642595,-300.0,0.00018,2]
[366104024,1750064653131,-406.34674091,0.00018,2]
[366104025,1750064680452,-500.0,0.00018,2]
[366104026,1750064687177,-489.19619062,0.00018,2]
[366104027,1750064703643,-359.0,0.00018,2]
[366104028,1750064708192,-500.0,0.00018,2]
[366104029,1750064713132,-500.0,0.00018,2]
[366104033,1750064734690,400000.0,0.00025046,60]
[366104034,1750064758939,480.52766077,0.00017998,2]
[366104035,1750064760563,-300.0,0.00018,2]
[366104036,1750064762189,-2157.19619062,0.00018,2]
[366104037,1750064763972,4494.99,0.00025046,60]
[366104038,1750064764796,-300.0,0.00018,2]
[366104039,1750064775083,-300.0,0.00018,2]
[366104040,1750064783621,273.27838388,0.00017998,2]
[366104041,1750064784463,850.613953,0.00017086,2]
[366104043,1750064791860,-200.0,0.00018,2]
[366104044,1750064822773,-246.15132269,0.00018,2]
[366104045,1750064827468,-300.0,0.00018,2]
[366104046,1750064828094,-300.0,0.00018,2]
[366104047,1750064832278,-287.3677084,0.00018,2]
[366104048,1750064832304,-12.6322916,0.00018071,2]
[366104049,1750064839109,186.2529184,0.00017092,2]
[366104050,1750064875615,229.62,0.00018,4]
[366104051,1750064885967,-188.23937203,0.00018071,2]
[366104055,1750065019444,420.4617032,0.00017972,2]
[366104075,1750065032944,-187.7,0.00018063,3]
[366104076,1750065032954,-563.15,0.00018063,3]
[366104077,1750065032964,-1200.0,0.0001807,2]
[366104078,1750065032975,-300.0,0.00018071,2]
[366104079,1750065032985,-300.0,0.00018071,2]
[366104080,1750065032996,-300.0,0.00018071,2]
[366104081,1750065033007,-1974.16589593,0.00018072,2]
[366104082,1750065033070,-17839.27330034,0.00018072,2]
[366104090,1750065038665,-992.7097196,0.00018071,2]
[366104091,1750065038675,-992.7097196,0.00018071,2]
[366104092,1750065038685,-992.7097196,0.00018071,2]
[366104093,1750065038695,-992.7097196,0.00018071,2]
[366104094,1750065038706,-992.7097196,0.00018071,2]
[366104095,1750065038716,-992.7097196,0.00018071,2]
[366104096,1750065038726,-992.7097196,0.00018071,2]
[366104097,1750065038735,-992.7097196,0.00018071,2]
[366104099,1750065038745,-992.7097196,0.00018071,2]
[366104100,1750065038756,-992.7097196,0.00018071,2]
[366104101,1750065038765,-992.7097196,0.00018071,2]
[366104102,1750065038775,-992.7097196,0.00018071,2]
[366104103,1750065038785,-992.7097196,0.00018071,2]
[366104104,1750065038795,-992.7097196,0.00018071,2]
[366104105,1750065038805,-992.7097196,0.00018071,2]
[366104106,1750065038814,-992.7097196,0.00018071,2]
[366104107,1750065038824,-992.7097196,0.00018071,2]
[366104108,1750065038833,-992.7097196,0.00018071,2]
[366104109,1750065038843,-992.7097196,0.00018071,2]
[366104110,1750065038852,-992.7097196,0.00018071,2]
[366104111,1750065038862,-500.0,0.00018071,2]
[366104112,1750065038871,-500.0,0.00018071,2]
[366104113,1750065038881,-225.66445957,0.00018071,2]
[366104114,1750065038891,-500.0,0.00018071,2]
[366104115,1750065038902,-500.0,0.00018071,2]
[366104116,1750065038911,-508.37893964,0.00018071,2]
[366104117,1750065038921,-500.0,0.00018071,2]
[366104118,1750065038931,-500.0,0.00018071,2]
[366104119,1750065038941,-500.0,0.00018071,2]
[366104120,1750065038951,-500.0,0.00018071,2]
[366104121,1750065038961,-500.0,0.00018071,2]
[366104122,1750065038971,-500.0,0.00018071,2]
[366104123,1750065038981,-185.29319933,0.00018071,2]
[366104124,1750065038991,-500.0,0.00018071,2]
[366104125,1750065039004,-500.0,0.00018071,2]
[366104126,1750065039013,-500.0,0.00018071,2]
[366104127,1750065039023,-456.59283092,0.00018071,2]
[366104128,1750065039033,-500.0,0.00018071,2]
[366104129,1750065039043,-500.0,0.00018071,2]
[366104130,1750065039052,-500.0,0.00018071,2]
[366104131,1750065039062,-500.0,0.00018071,2]
[366104132,1750065039072,-500.0,0.00018071,2]
[366104133,1750065039081,-357.11825547,0.00018071,2]
[366104134,1750065039091,-500.0,0.00018071,2]
[366104135,1750065039101,-500.0,0.00018071,2]
[366104136,1750065039112,-500.0,0.00018071,2]
[366104137,1750065039122,-204.23890461,0.00018071,2]
[366104138,1750065039132,-500.0,0.00018071,2]
[366104139,1750065039142,-500.0,0.00018071,2]
[366104140,1750065039152,-500.0,0.00018071,2]
[366104141,1750065039162,-500.0,0.00018071,2]
[366104142,1750065039172,-500.0,0.00018071,2]
[366104143,1750065039182,-500.0,0.00018071,2]
[366104144,1750065039192,-500.0,0.00018071,2]
[366104145,1750065039202,-500.0,0.00018071,2]
[366104146,1750065039212,-500.0,0.00018071,2]
[366104147,1750065039222,-500.0,0.00018071,2]
[366104148,1750065039232,-500.0,0.00018071,2]
[366104149,1750065039246,-500.0,0.00018071,2]
[366104150,1750065039256,-332.74897028,0.00018071,2]
[366104151,1750065039265,-500.0,0.00018071,2]
[366104152,1750065039276,-500.0,0.00018071,2]
[366104153,1750065039287,-500.0,0.00018071,2]
[366104154,1750065039297,-500.0,0.00018071,2]
[366104155,1750065039307,-500.0,0.00018071,2]
[366104156,1750065039317,-500.0,0.00018071,2]
[366104157,1750065039328,-992.7097196,0.00018071,2]
[366104158,1750065039338,-500.0,0.00018071,2]
[366104159,1750065039348,-500.0,0.00018071,2]
[366104160,1750065039359,-155.11942275,0.00018071,2]
[366104161,1750065039368,-500.0,0.00018071,2]
[366104162,1750065039378,-500.0,0.00018071,2]
[366104163,1750065039389,-350.0,0.00018071,2]
[366104164,1750065039399,-500.0,0.00018071,2]
[366104165,1750065039409,-500.0,0.00018071,2]
[366104166,1750065039419,-500.0,0.00018071,2]
[366104167,1750065039429,-500.0,0.00018071,2]
[366104168,1750065039439,-992.7097196,0.00018071,2]
[366104169,1750065039449,-500.0,0.00018071,2]
[366104170,1750065039459,-500.0,0.00018071,2]
[366104171,1750065039468,-500.0,0.00018071,2]
[366104172,1750065039478,-500.0,0.00018071,2]
[366104173,1750065039487,-500.0,0.00018071,2]
[366104174,1750065039498,-500.0,0.00018071,2]
[366104175,1750065039508,-500.0,0.00018071,2]
[366104176,1750065039522,-500.0,0.00018071,2]
[366104177,1750065039533,-500.0,0.00018071,2]
[366104178,1750065039543,-500.0,0.00018071,2]
[366104179,1750065039552,-500.0,0.00018071,2]
[366104180,1750065039561,-500.0,0.00018071,2]
[366104181,1750065039572,-500.0,0.00018071,2]
[366104182,1750065039582,-500.0,0.00018071,2]
[366104183,1750065039592,-500.0,0.00018071,2]
[366104184,1750065039603,-500.0,0.00018071,2]
[366104185,1750065039612,-500.0,0.00018071,2]
[366104186,1750065039622,-500.0,0.00018071,2]
[366104187,1750065039632,-500.0,0.00018071,2]
[366104188,1750065039642,-168.91595716,0.00018071,2]
[366104189,1750065039654,-500.0,0.00018071,2]
[366104190,1750065039664,-500.0,0.00018071,2]
[366104191,1750065039673,-500.0,0.00018071,2]
[366104192,1750065039683,-500.0,0.00018071,2]
[366104193,1750065039693,-500.0,0.00018071,2]
[366104194,1750065039703,-500.0,0.00018071,2]
[366104195,1750065039713,-500.0,0.00018071,2]
[366104196,1750065039724,-30186.56080373,0.00018072,2]
[366104197,1750065039735,-300.0,0.00018072,2]
[366104198,1750065039745,-500.0,0.00018073,2]
[366104199,1750065039756,-500.0,0.00018073,2]
[366104200,1750065039765,-500.0,0.00018073,2]
[366104201,1750065039775,-500.0,0.00018073,2]
[366104202,1750065039785,-500.0,0.00018073,2]
[366104203,1750065039794,-690.8588459,0.00018082,2]
[366104204,1750065039805,-173.3,0.0001809,2]
[366104205,1750065039815,-99380.7113434,0.000181,2]
[366104206,1750065039825,-151.0,0.000181,2]
[366104207,1750065039835,-306.3652,0.000181,2]
[366104208,1750065039844,-306.3652,0.000181,2]
[366104209,1750065039854,-151.0,0.000181,2]
[366104210,1750065039863,-861.28079038,0.00018171,2]
[366104211,1750065039873,-160.0,0.00018171,2]
[366104212,1750065039882,-151.0,0.00018172,2]
[366104213,1750065039891,-151.0,0.00018172,2]
[366104214,1750065039901,-151.0,0.00018172,2]
[366104215,1750065039910,-151.0,0.00018172,2]
[366104216,1750065039920,-151.0,0.00018172,2]
[366104217,1750065039931,-274.17721786,0.00018173,2]
[366104218,1750065039941,-500.0,0.00018173,2]
[366104219,1750065040070,-506.85366717,0.00018173,2]
[366104220,1750065040081,-501.04576821,0.00018173,2]
[366104221,1750065040091,-500.0,0.00018173,2]
[366104222,1750065040102,-567.1542675,0.00018173,2]
[366104223,1750065040112,-500.0,0.00018173,2]
[366104224,1750065040122,-500.0,0.00018173,2]
[366104225,1750065040132,-500.0,0.00018173,2]
[366104226,1750065040142,-502.09831698,0.00018173,2]
[366104227,1750065040152,-151.0,0.00018173,2]
[366104228,1750065040162,-160.0,0.00018194,2]
[366104229,1750065040171,-1000.0,0.00018197,2]
[366104230,1750065040181,-1000.0,0.00018197,2]
[366104231,1750065040192,-1000.0,0.00018197,2]
[366104232,1750065040201,-1000.0,0.00018197,2]
[366104233,1750065040211,-1000.0,0.00018197,2]
[366104234,1750065040221,-1000.0,0.00018197,2]
[366104235,1750065040231,-1000.0,0.00018197,2]
[366104236,1750065040241,-1000.0,0.00018197,2]
[366104237,1750065040253,-1000.0,0.00018198,2]
[366104238,1750065040263,-1000.0,0.00018198,2]
[366104239,1750065040273,-1000.0,0.00018198,2]
[366104240,1750065040283,-754.41072803,0.00018199,2]
[366104241,1750065040292,-1000.0,0.00018621,2]
[366104242,1750065040303,-701.0,0.00018621,2]
[366104243,1750065040313,-1000.0,0.00018621,2]
[366104244,1750065040323,-676.97909017,0.00018621,2]
[366104245,1750065040334,-1012.23562863,0.00018721,2]
[366104246,1750065040345,-192.52258843,0.00018721,2]
[366104247,1750065040355,-1003.92208925,0.00018721,2]
[366104248,1750065040365,-1000.0,0.00018721,2]
[366104249,1750065040374,-273.27838387,0.00018953,2]
[366104250,1750065040385,-420.46170316,0.00018968,2]
[366104251,1750065040394,-3010.85702491,0.00019098,2]
[366104252,1750065040409,-2126.63732632,0.00019098,2]
[366105087,1750065147519,159.613466,0.00013699,2]
[366105089,1750065151388,200.0,0.00024516,120]
[366105090,1750065153744,-173.3,0.0001807,2]
[366105091,1750065184014,-153.17744513,0.00018069,2]
[366105092,1750065205113,400.0,0.00024657,120]
[366105093,1750065211470,200.0,0.00024185,120]
[366105094,1750065241374,315.34627737,0.0001797,2]
[366105095,1750065241910,-160.0,0.0001807,2]
[366105096,1750065271937,-154.16074048,0.00018069,2]
[366105097,1750065273679,-226.35468164,0.00018069,2]
[366105098,1750065275744,-160.0,0.00018069,2]
[366105099,1750065282381,-285.19929943,0.00018069,2]
[366105101,1750065303228,-247.45697488,0.00018068,2]
[366105102,1750065306572,-52.54302512,0.00018068,2]
[366105103,1750065306599,-241.18550883,0.00018068,2]
[366105104,1750065307316,2000.0,0.00017376,120]
[366105105,1750065310474,-20.81449117,0.00018068,2]
[366105106,1750065310496,-165.66517263,0.00018068,2]
[366105107,1750065356817,-134.33482737,0.00018068,2]
[366105108,1750065356842,-17.40268261,0.00018068,2]
[366105111,1750065363456,-193.18030738,0.00018068,2]
[366105112,1750065373550,177.76866356,0.00017923,2]
[366105113,1750065376703,192.36238964,0.00017923,2]
[366105114,1750065386087,-259.0,0.00018068,2]
[366105115,1750065404263,-320.7242476,0.00018067,2]
[366105116,1750065413362,344.91781736,0.00017967,2]
[366105117,1750065413805,-183.66,0.00018067,2]
[366105118,1750065424143,-222.04152509,0.00018066,2]
[366105119,1750065469551,275.92799276,0.00017967,2]
[366105120,1750065470215,-77.95847491,0.00018066,2]
[366105121,1750065470238,-197.96951785,0.00018067,2]
[366105122,1750065471663,-220.48295748,0.00018067,2]
[366105123,1750065485261,-180.48467971,0.00018066,2]
[366105124,1750065510759,200.0,0.00024266,120]
[366105125,1750065512593,-119.51532029,0.00018066,2]
[366105126,1750065512617,-87.66277923,0.00018067,2]
[366105127,1750065516327,-377.1471811,0.00018066,2]
[366105128,1750065543134,-195.7999762,0.00018065,2]
[366105129,1750065570760,200.0,0.0002462,120]
[366105130,1750065573976,195.7999762,0.00017966,2]
[366105132,1750065589174,24900.0,0.00017673,2]
[366105133,1750065589808,-104.2000238,0.00018065,2]
[366105134,1750065589832,-122.8528189,0.00018066,2]
[366105135,1750065589855,-0.70234765,0.00018066,2]
[366105136,1750065590421,-166.89531231,0.00018066,2]
[366105137,1750065590446,-60.85987804,0.00018066,2]
[366105138,1750065596179,-160.0,0.00018066,2]
[366105139,1750065603410,-171.0559228,0.00018065,2]
[366105140,1750065610098,-128.9440772,0.00018065,2]
[366105141,1750065610120,-180.27555046,0.00018065,2]
[366105143,1750065634815,-119.72444954,0.00018065,2]
[366105144,1750065634839,-80.27555046,0.00018065,2]
[366105146,1750065691359,200.0,0.00024025,120]
[366105148,1750065699907,241.43699363,0.00017965,2]
[366105149,1750065721940,-173.3,0.00018055,2]
[366105150,1750065721964,-142.62627053,0.00018064,2]
[366105151,1750065753160,-157.37372947,0.00018064,2]
[366105152,1750065753185,-151.84589819,0.00018064,2]
[366105153,1750065757996,-148.15410181,0.00018064,2]
[366105154,1750065758021,-151.84589819,0.00018064,2]
[366105155,1750065761062,519.426662,0.00017684,2]
[366105157,1750065784152,-300.0,0.00018063,2]
[366105159,1750065925251,211.2573694,0.00017963,2]
[366105160,1750065955944,-270.17652984,0.00018061,2]
[366105162,1750066022025,-29.82347016,0.00018061,2]
[366105163,1750066022049,-300.0,0.00018062,2]
[366105164,1750066022074,-100.35305968,0.00018062,2]
[366105165,1750066040757,3001.7,0.00024658,120]
[366105166,1750066056095,2340.65574285,0.00025039,120]
[366105167,1750066063923,198.4573259,0.00017066,2]
[366105168,1750066068326,217.79871164,0.00025039,120]
[366105169,1750066073945,2783.55550421,0.00025039,120]
[366105170,1750066074715,665.16946605,0.000246,120]
[366105171,1750066076868,-263.72800973,0.00018,2]
[366105172,1750066079510,467.99200617,0.00024657,120]
[366105173,1750066082176,-263.72800973,0.00018,2]
[366105174,1750066087762,200.0,0.00025039,120]
[366105175,1750066088550,3839.34534336,0.00025039,60]
[366105176,1750066094042,222.6633684,0.00017612,2]
[366105177,1750066098806,172.4310273,0.00025039,120]
[366105178,1750066099568,269.52139277,0.00025039,120]
[366105179,1750066101942,543.23823461,0.00025039,120]
[366105180,1750066105607,188.0,0.0002,120]
[366105181,1750066107899,960.4629092,0.00025039,120]
[366105182,1750066108388,914.0929858,0.00025039,120]
[366105183,1750066111507,556.87949007,0.00025039,120]
[366105184,1750066113593,-183.66,0.00018,2]
[366105185,1750066116417,843.13807375,0.00025039,120]
[366105186,1750066116983,-500.0,0.00018,2]
[366105187,1750066117381,686.96181818,0.00025039,120]
[366105188,1750066117682,500.0,0.00017999,2]
[366105189,1750066117718,500.0,0.00017999,2]
[366105190,1750066117753,500.0,0.00017999,2]
[366105191,1750066117791,500.0,0.00017999,2]